bitfinex/quotes_SOLUSD_20250806
["timestamp","ask_amount","ask_price","bid_price","bid_amount"]
[1754502608063,0.71,168.95,168.93,0.06]
[1754502608255,6.17382837,168.94,168.93,0.06]
[1754502608452,6.88382837,168.94,168.93,0.06]
[1754502609063,6.17382837,168.94,168.93,0.06]
[1754502611270,146.61,168.95,168.93,0.06]
[1754502611271,145.9,168.95,168.93,0.06]
[1754502611485,1e-08,168.96,168.93,6.93382837]
[1754502611777,1e-08,168.96,168.94,0.7]
[1754502612143,1e-08,168.96,168.95,0.7]
[1754502613480,1e-08,168.96,168.95,6.61891092]
[1754502614562,1e-08,168.96,168.95,5.91891092]
[1754502615559,1e-08,168.96,168.95,12.79273929]
[1754502615886,1e-08,168.96,168.95,6.61891092]
[1754502616080,1e-08,168.96,168.95,56.37273929]
[1754502616647,1e-08,168.96,168.95,50.19891092]
[1754502616853,1e-08,168.96,168.95,6.61891092]
[1754502617165,1e-08,168.96,168.95,5.91891092]
[1754502617771,1e-08,168.96,168.95,6.61891092]
[1754502618487,1e-08,168.96,168.95,5.91891092]
[1754502619683,1e-08,168.96,168.94,49.4791365]
[1754502620753,1e-08,168.96,168.95,0.67]
[1754502621364,1e-08,168.96,168.95,6.58891092]
[1754502621858,1e-08,168.96,168.95,12.76273929]
[1754502622062,1e-08,168.96,168.95,6.58891092]
[1754502622465,1e-08,168.96,168.95,12.76273929]
[1754502622769,1e-08,168.96,168.95,6.58891092]
[1754502623368,1e-08,168.96,168.95,38.76273929]
[1754502623676,1e-08,168.96,168.95,28.153278]
[1754502624557,0.139721,169.0,168.98,26.0]
[1754502624764,0.139721,169.0,168.99,6.17382837]
[1754502624966,0.139721,169.0,168.99,6.84382837]
[1754502625471,0.139721,169.0,168.99,12.76133828]
[1754502626175,1e-08,169.0,168.99,13.04566142]
[1754502626365,43.67601321,169.11,168.99,13.04566142]
[1754502626366,3.98402798,169.1,169.03,41.10621557]
[1754502626569,0.7827195,169.11,169.07,26.0]
[1754502626749,0.7827195,169.11,169.07,26.67]
[1754502627169,0.7827195,169.11,169.09,6.17382837]
[1754502627364,0.7827195,169.11,169.09,12.08778774]
[1754502627680,0.7827195,169.11,169.09,5.91395937]
[1754502627855,0.7827195,169.11,169.1,50.47382837]
[1754502628064,1.4427195,169.11,169.07,6.58437219]
[1754502628256,0.7827195,169.11,169.08,44.95]
[1754502628476,0.66,169.1,169.08,44.28]
[1754502628774,0.66,169.09,169.06,26.0]
[1754502629074,6.17382837,169.07,169.04,26.0]
[1754502629277,0.66,169.06,169.01,6.58656026]
[1754502629582,0.66,169.06,169.02,51.28382837]
[1754502629779,1.4427195,169.11,169.03,6.84382837]
[1754502630077,0.7827195,169.11,169.05,26.0]
[1754502630279,0.7827195,169.11,169.09,6.17382837]
[1754502630464,0.7827195,169.11,169.08,6.17382837]
[1754502630661,7.61654787,169.11,169.06,45.11]
[1754502630869,6.83382837,169.1,169.06,51.28382837]
[1754502631073,6.83382837,169.1,169.06,45.11]
[1754502631270,6.83382837,169.1,169.07,44.42]
[1754502631578,0.66,169.1,169.07,50.33469952]
[1754502631974,0.7827195,169.11,169.07,57.17852789]
[1754502632167,0.7827195,169.11,169.08,0.67]
[1754502632479,0.7827195,169.11,169.1,6.17382837]
[1754502632657,0.7827195,169.11,169.1,50.61382837]
[1754502632858,0.7827195,169.11,169.1,51.28382837]
[1754502633586,0.7827195,169.11,169.1,57.19748892]
[1754502634292,0.7827195,169.11,169.1,86.19069536]
[1754502635463,0.7827195,169.11,169.1,80.01686699]
[1754502635662,0.7827195,169.11,169.1,86.19069536]
[1754502636401,0.7827195,169.11,169.1,80.01686699]
[1754502636579,0.7827195,169.11,169.1,86.19069536]
[1754502637010,0.7827195,169.11,169.1,54.01686699]
[1754502637213,0.7827195,169.11,169.1,51.00366055]
[1754502637428,0.7827195,169.11,169.09,5.91393507]
[1754502637726,0.7827195,169.11,169.1,50.59382837]
[1754502638198,0.7827195,169.11,169.1,51.26382837]
[1754502638399,0.7827195,169.11,169.07,12.75827677]
[1754502638595,0.7827195,169.11,169.08,44.4]
[1754502638817,0.7827195,169.11,169.08,51.24382837]
[1754502639020,0.7827195,169.11,169.08,45.07]
[1754502639228,0.7827195,169.11,169.09,0.67]
[1754502639446,0.7827195,169.11,169.1,51.22382837]
[1754502639611,0.7827195,169.11,169.1,57.13748892]
[1754502640327,0.7827195,169.11,169.1,50.96366055]
[1754502640814,0.7827195,169.11,169.1,57.13748892]
[1754502641503,0.7827195,169.11,169.1,38.75748892]
[1754502641917,0.7827195,169.11,169.1,76.23366055]
[1754502642238,0.7827195,169.11,169.1,82.40748892]
[1754502642605,0.7827195,169.11,169.1,76.90366055]
[1754502642936,0.7827195,169.11,169.1,83.07748892]
[1754502643617,0.7827195,169.11,169.1,31.91366055]
[1754502643806,0.7827195,169.11,169.1,76.23366055]
[1754502643998,1.4427195,169.11,169.1,31.91366055]
[1754502644202,1.4727195,169.11,169.1,70.28]
[1754502644446,0.8127195,169.11,169.1,76.19366055]
[1754502644657,0.8127195,169.11,169.1,76.86366055]
[1754502645217,0.8127195,169.11,169.1,76.19366055]
[1754502645644,0.8127195,169.11,169.1,44.28]
[1754502646040,1.4727195,169.11,169.07,5.91438819]
[1754502646334,7.64654787,169.11,169.08,44.22]
[1754502646538,1.4727195,169.11,169.08,44.22]
[1754502646721,1.4727195,169.11,169.07,12.08821656]
[1754502646925,1.4727195,169.11,169.08,44.22]
[1754502647126,6.83382837,169.1,169.06,5.91495021]
[1754502647333,0.66,169.09,169.07,44.22]
[1754502647515,6.83382837,169.09,169.07,70.2]
[1754502648932,6.86382837,169.08,169.07,44.2]
[1754502649142,6.86382837,169.08,169.01,6.17382837]
[1754502649341,6.17382837,169.05,169.02,44.2]
[1754502649662,6.17382837,169.06,169.03,5.91610956]
[1754502649845,6.17382837,169.06,169.04,44.2]
[1754502650243,6.86382837,169.07,169.04,44.2]
[1754502651045,6.17382837,169.08,169.04,44.2]
[1754502651245,6.17382837,169.07,169.04,44.2]
[1754502651631,6.72634763,169.11,169.04,50.11559821]
[1754502651838,6.17382837,169.08,169.04,50.11559821]
[1754502652039,6.17382837,169.08,169.04,50.79559821]
[1754502653140,0.69,169.07,169.04,44.2]
[1754502653357,6.17382837,169.05,169.0,5.97713923]
[1754502653537,6.17382837,169.02,169.0,44.16]
[1754502653953,0.69,169.04,169.0,44.16]
[1754502654267,145.9,169.06,169.01,6.85382837]
[1754502654559,152.07382837,169.06,169.02,44.78]
[1754502654752,6.17382837,169.05,169.02,44.1]
[1754502654958,6.17382837,169.04,169.02,44.1]
[1754502655330,6.17382837,169.05,169.02,44.1]
[1754502655526,6.17382837,169.05,169.02,44.78]
[1754502655728,152.07382837,169.06,169.02,50.69643308]
[1754502655963,152.07382837,169.06,169.03,0.68]
[1754502656158,145.9,169.06,169.03,0.68]
[1754502656459,145.9,169.06,169.04,44.74]
[1754502657050,6.17382837,169.05,169.03,44.04]
[1754502657636,152.07382837,169.06,169.03,44.72]
[1754502658457,152.07382837,169.06,169.03,44.04]
[1754502658949,6.17382837,169.05,169.03,44.04]
[1754502659157,6.86382837,169.05,169.02,5.91631501]
[1754502659358,6.86382837,169.05,169.03,43.98]
[1754502659563,6.17382837,169.04,169.03,43.98]
[1754502659771,0.69,169.05,169.03,43.98]
[1754502659960,6.17382837,169.05,169.03,43.98]
[1754502660460,6.86382837,169.04,169.0,0.06]
[1754502660644,6.17382837,169.01,169.0,0.06]
[1754502661051,12.78063802,169.01,169.0,0.06]
[1754502661239,6.86382837,169.01,169.0,0.06]
[1754502661640,6.17382837,169.01,169.0,0.06]
[1754502662351,6.86382837,169.01,169.0,0.06]
[1754502662763,6.86382837,169.01,168.93,0.06]
[1754502662764,15.10621557,169.0,168.93,0.06]
[1754502663059,6.17382837,168.94,168.93,0.06]
[1754502663439,6.17382837,168.95,168.93,0.06]
[1754502663640,6.17382837,168.97,168.93,0.74]
[1754502663965,6.17382837,168.95,168.93,0.06]
[1754502664367,0.69,168.97,168.93,0.06]
[1754502664540,6.17382837,168.95,168.93,0.06]
[1754502664869,6.17382837,168.94,168.93,0.06]
[1754502665180,6.17382837,168.95,168.93,0.06]
[1754502665340,5.9181737,168.98,168.93,0.06]
[1754502665544,6.17382837,168.95,168.93,0.74]
[1754502665855,5.9181737,168.98,168.93,0.06]
[1754502665856,6.17382837,168.94,168.93,0.06]
[1754502667843,5.9186608,168.96,168.93,0.06]
[1754502668061,6.17382837,168.94,168.93,0.06]
[1754502668952,6.86382837,168.94,168.93,0.06]
[1754502669353,12.78308964,168.94,168.93,0.06]
[1754502669760,6.17382837,168.94,168.93,0.06]
[1754502671947,12.78308964,168.94,168.93,0.06]
[1754502672660,15.10621557,168.98,168.94,76.86363036]
[1754502672968,21.56436708,168.95,168.94,76.86363036]
[1754502673272,6.17382837,168.95,168.94,76.86363036]
[1754502673457,6.45815151,168.95,168.94,76.86363036]
[1754502673654,21.56436708,168.95,168.94,76.86363036]
[1754502673861,27.483278,168.95,168.94,76.86363036]
[1754502674379,47.56436708,168.94,168.93,0.06]
[1754502674682,47.63436708,168.94,168.93,0.06]
[1754502675381,41.39053871,168.92,168.91,0.06]
[1754502675679,91.50436708,168.92,168.91,0.06]
[1754502675862,91.57436708,168.92,168.91,0.06]
[1754502676550,91.57436708,168.92,168.87,0.06]
[1754502676551,6.17382837,168.88,168.87,0.06]
[1754502676748,65.46436708,168.88,168.87,0.06]
[1754502676953,65.53436708,168.88,168.87,0.06]
[1754502677588,71.45573136,168.88,168.87,0.06]
[1754502678277,71.45573136,168.88,168.83,0.2]
[1754502678278,41.10621557,168.84,168.83,0.2]
[1754502678595,91.44436708,168.84,168.83,0.2]
[1754502679391,91.44436708,168.84,168.83,0.9]
[1754502679590,76.05382837,168.84,168.83,0.9]
[1754502680496,69.88,168.84,168.83,0.9]
[1754502680796,50.03382837,168.87,168.83,0.9]
[1754502681092,50.03382837,168.87,168.84,0.7]
[1754502681384,50.03382837,168.87,168.85,0.7]
[1754502681596,50.03382837,168.87,168.83,6.12303966]
[1754502681597,43.86,168.87,168.86,0.7]
[1754502681760,32.17382837,168.87,168.86,0.7]
[1754502681970,6.17382837,168.88,168.86,0.7]
[1754502682481,6.17382837,168.87,168.83,0.9]
[1754502682792,6.17382837,168.86,168.84,0.7]
[1754502682976,6.17382837,168.87,168.85,0.7]
[1754502683369,6.17382837,168.88,168.86,0.7]
[1754502684065,50.01382837,168.89,168.87,0.7]
[1754502684270,50.01382837,168.89,168.88,0.7]
[1754502684673,50.01382837,168.89,168.86,0.7]
[1754502684971,6.17382837,168.88,168.86,0.7]
[1754502685180,6.17382837,168.87,168.84,0.7]
[1754502685512,43.84,168.89,168.86,0.7]
[1754502685700,43.84,168.89,168.87,0.7]
[1754502686187,50.01382837,168.89,168.84,6.17382837]
[1754502686383,50.01382837,168.89,168.83,6.82308402]
[1754502686384,6.17382837,168.88,168.83,6.37382837]
[1754502686590,6.17382837,168.88,168.83,0.2]
[1754502686793,6.17382837,168.88,168.84,0.7]
[1754502687294,6.17382837,168.88,168.85,0.7]
[1754502687499,50.01382837,168.89,168.86,0.7]
[1754502687999,55.93486656,168.89,168.84,6.87382837]
[1754502688171,56.00486656,168.89,168.84,6.87382837]
[1754502688682,50.08382837,168.89,168.84,6.87382837]
[1754502688998,50.01382837,168.89,168.85,0.7]
[1754502689596,55.93492195,168.89,168.83,6.12310306]
[1754502689780,6.17382837,168.88,168.84,6.17382837]
[1754502690292,6.17382837,168.88,168.84,6.87382837]
[1754502690695,6.17382837,168.88,168.85,0.7]
[1754502691474,43.87,168.89,168.86,0.7]
[1754502691679,43.87,168.89,168.87,0.7]
[1754502692106,43.87,168.89,168.86,6.17382837]
[1754502692598,0.03,168.89,168.88,6.17382837]
[1754502692798,0.03,168.89,168.88,6.87382837]
[1754502694079,0.03,168.89,168.88,12.79519265]
[1754502695597,0.03,168.89,168.88,6.62136428]
[1754502695799,0.03,168.89,168.88,12.79519265]
[1754502698301,43.64,168.96,168.88,33.77243172]
[1754502698506,21.28004394,169.01,168.95,6.17382837]
[1754502698704,43.62,169.0,168.97,6.17382837]
[1754502699008,43.62,169.0,168.98,6.87382837]
[1754502701809,75.75382837,169.04,168.99,6.87382837]
[1754502702104,69.58,169.04,169.0,6.17382837]
[1754502702308,75.75382837,169.04,169.0,0.7]
[1754502702489,6.24382837,169.03,168.98,6.87382837]
[1754502702679,6.17382837,169.03,168.98,6.17382837]
[1754502702884,75.49580756,169.04,168.99,6.17382837]
[1754502703084,75.75382837,169.04,168.99,6.87382837]
[1754502703300,69.58,169.04,168.99,6.87382837]
[1754502703512,75.75382837,169.04,168.99,6.87382837]
[1754502703699,69.58,169.04,169.0,6.87382837]
[1754502704513,75.75382837,169.04,168.99,6.17382837]
[1754502704711,75.75382837,169.04,168.98,6.17382837]
[1754502704712,21.63436708,169.03,168.98,6.17382837]
[1754502705313,15.39053871,169.03,168.99,6.87382837]
[1754502705493,69.58,169.04,169.0,6.87382837]
[1754502705693,69.58,169.04,169.0,6.17382837]
[1754502706015,43.58,169.04,169.02,6.17382837]
[1754502706214,43.58,169.04,169.02,6.87382837]
[1754502706516,0.1,169.05,169.02,5.91638164]
[1754502706715,0.1,169.05,169.03,6.87382837]
[1754502707017,0.1,169.05,169.03,0.7]
[1754502707195,0.1,169.05,169.03,6.87382837]
[1754502709195,0.1,169.05,169.01,6.17382837]
[1754502709408,0.1,169.05,169.02,6.17382837]
[1754502709704,0.1,169.05,169.01,0.7]
[1754502710030,0.1,169.05,169.02,6.87382837]
[1754502710197,0.1,169.05,169.04,6.17382837]
[1754502710724,0.1,169.05,169.03,0.7]
[1754502711016,0.1,169.05,169.02,6.17382837]
[1754502711225,0.1,169.05,169.01,0.7]
[1754502711605,0.1,169.05,169.01,6.87382837]
[1754502711606,145.9,169.04,169.01,6.87382837]
[1754502711920,145.9,169.04,168.96,26.0]
[1754502711921,43.4,169.03,168.99,6.17382837]
[1754502712131,49.57382837,169.03,168.98,6.87382837]
[1754502712341,49.57382837,169.03,168.98,12.79161765]
[1754502712505,43.4,169.03,168.99,6.87382837]
[1754502712709,49.57382837,169.03,168.99,6.87382837]
[1754502714520,49.57382837,169.03,168.99,6.17382837]
[1754502715126,49.57382837,169.03,169.0,0.7]
[1754502715512,49.57382837,169.03,168.98,5.91782561]
[1754502715513,55.49002117,169.03,168.98,0.7]
[1754502715746,6.17382837,169.02,168.97,12.09191137]
[1754502716008,49.57382837,169.03,168.98,6.87382837]
[1754502716223,49.57382837,169.03,168.98,6.17382837]
[1754502716425,49.57382837,169.03,168.99,0.7]
[1754502716640,49.57382837,169.03,168.98,6.17382837]
[1754502716641,55.55997553,169.03,168.97,6.618083]
[1754502716823,55.55997553,169.03,168.98,6.17382837]
[1754502717337,145.9,169.04,168.99,0.7]
[1754502717824,145.9,169.04,169.03,6.17382837]
[1754502718203,145.9,169.04,169.03,6.87382837]
[1754502720116,145.9,169.04,169.02,6.17382837]
[1754502720526,145.9,169.04,169.01,5.91652038]
[1754502720833,145.9,169.04,169.01,6.17382837]
[1754502721418,145.9,169.04,169.02,6.17382837]
[1754502722741,145.9,169.04,169.01,6.17382837]
[1754502723350,145.9,169.03,169.01,6.17382837]
[1754502723521,145.9,169.03,169.01,6.87382837]
[1754502723721,145.9,169.03,169.02,0.7]
[1754502723937,145.9,169.03,169.02,6.87382837]
[1754502724819,145.27564873,169.03,169.02,6.87382837]
[1754502725050,145.27564873,169.03,169.02,6.17382837]
[1754502725533,145.27564873,169.03,169.01,5.91674285]
[1754502725739,145.27564873,169.03,169.01,12.09057122]
[1754502726332,145.27564873,169.03,169.01,5.91674285]
[1754502726642,145.27564873,169.03,169.01,12.09057122]
[1754502727143,145.27564873,169.03,169.0,6.61702068]
[1754502727328,145.27564873,169.03,169.01,6.17382837]
[1754502727531,145.27564873,169.03,169.0,6.61702068]
[1754502727746,145.27564873,169.03,169.01,6.17382837]
[1754502728119,145.27564873,169.03,169.01,12.09061774]
[1754502728315,145.27564873,169.03,169.02,6.17382837]
[1754502728738,145.27564873,169.03,169.02,6.87382837]
[1754502729328,43.34,169.05,169.02,6.87382837]
[1754502729947,43.34,169.05,169.02,12.79023277]
[1754502730547,43.34,169.05,169.02,6.6164044]
[1754502731451,43.34,169.05,169.02,0.7]
[1754502731754,43.34,169.05,169.0,0.7]
[1754502731921,43.34,169.05,169.01,6.87382837]
[1754502733022,43.34,169.05,169.01,0.7]
[1754502733222,43.34,169.05,169.01,6.87382837]
[1754502733844,43.34,169.05,169.01,12.79049464]
[1754502734643,43.41,169.05,169.0,5.91704429]
[1754502734827,49.58382837,169.05,169.0,12.09087266]
[1754502735033,49.58382837,169.05,169.0,12.79087266]
[1754502735229,145.9,169.02,169.0,12.79087266]
[1754502738038,145.9,169.02,169.0,6.87382837]
[1754502738261,145.9,169.02,168.99,6.17382837]
[1754502738755,145.9,169.02,168.98,12.09156752]
[1754502739064,145.9,169.02,168.98,12.76156752]
[1754502741440,145.9,169.02,168.99,0.67]
[1754502742337,145.9,169.02,168.98,5.91773915]
[1754502742338,152.14382837,169.02,168.98,5.91773915]
[1754502742857,152.14382837,169.02,168.98,6.58773915]
[1754502743050,152.07382837,169.02,168.98,6.58773915]
[1754502743974,145.9,169.01,168.98,6.58773915]
[1754502745363,145.9,169.01,168.99,6.84382837]
[1754502745774,145.9,169.01,168.98,12.09156752]
[1754502745973,145.9,169.01,168.98,5.91773915]
[1754502746270,145.9,169.01,168.9,0.67]
[1754502746271,6.17382837,168.99,168.9,0.67]
[1754502746453,6.17382837,168.99,168.87,0.06]
[1754502746454,6.17382837,168.91,168.88,0.67]
[1754502746767,6.17382837,168.91,168.89,0.67]
[1754502747349,6.17382837,168.91,168.88,5.92108448]
[1754502747564,6.17382837,168.91,168.87,0.06]
[1754502747565,6.17382837,168.9,168.87,0.73]
[1754502747767,6.17382837,168.91,168.87,6.65166232]
[1754502747966,6.17382837,168.91,168.88,0.67]
[1754502748269,6.17382837,168.91,168.89,0.67]
[1754502748651,6.17382837,168.91,168.87,6.65166232]
[1754502748868,6.17382837,168.9,168.87,6.65166232]
[1754502749962,6.17382837,168.91,168.87,6.65166232]
[1754502750160,6.17382837,168.91,168.87,5.98166232]
[1754502750380,26.0,168.94,168.89,6.17382837]
[1754502750565,42.78,168.93,168.9,0.67]
[1754502750765,48.95382837,168.93,168.9,0.67]
[1754502752265,6.17382837,168.92,168.89,5.92091092]
[1754502752461,6.17382837,168.92,168.87,15.53428732]
[1754502752462,6.17382837,168.9,168.87,6.65137181]
[1754502753879,6.17382837,168.9,168.87,5.98137181]
[1754502754272,6.17382837,168.9,168.87,6.65137181]
[1754502754673,48.93382837,168.91,168.87,5.98137181]
[1754502754980,48.93382837,168.91,168.88,0.67]
[1754502755374,42.76,168.91,168.88,0.67]
[1754502755576,42.76,168.91,168.89,0.67]
[1754502755778,42.72,168.93,168.9,0.67]
[1754502755960,42.72,168.93,168.89,6.17382837]
[1754502756157,42.72,168.93,168.91,0.67]
[1754502756361,42.72,168.93,168.91,6.59002268]
[1754502756562,188.62,168.95,168.92,6.84382837]
[1754502756860,145.9,168.95,168.93,0.67]
[1754502757074,145.9,168.95,168.94,0.67]
[1754502757587,145.9,168.95,168.92,0.67]
[1754502757887,145.9,168.95,168.93,0.67]
[1754502758085,6.17382837,168.94,168.91,5.92002268]
[1754502758583,188.6,168.95,168.92,6.84382837]
[1754502758783,41.31837714,169.0,168.93,0.67]
[1754502758990,6.17382837,168.98,168.93,6.84382837]
[1754502759299,42.68,168.97,168.94,0.67]
[1754502760191,6.17382837,169.0,168.95,6.84382837]
[1754502760492,42.65198939,168.99,168.97,5.91821033]
[1754502760992,42.65198939,168.99,168.97,6.58821033]
[1754502761791,42.65198939,168.99,168.97,12.7620387]
[1754502761969,42.65198939,168.99,168.97,6.58821033]
[1754502762172,42.65198939,168.99,168.97,5.91821033]
[1754502762363,0.5,169.0,168.97,5.91821033]
[1754502762785,0.5,169.0,168.98,0.67]
[1754502763493,0.5,169.0,168.98,6.17382837]
[1754502763793,0.5,169.0,168.99,0.67]
[1754502764595,0.5,169.0,168.99,5.91750991]
[1754502764994,0.5,169.0,168.96,12.09238897]
[1754502765204,0.5,169.0,168.96,12.76238897]
[1754502765376,0.5,169.0,168.96,12.09238897]
[1754502765572,0.5,169.0,168.97,6.84382837]
[1754502766773,0.5,169.0,168.98,5.9178601]
[1754502767699,145.9,168.99,168.98,5.9178601]
[1754502768201,145.9,168.99,168.98,6.5878601]
[1754502769271,145.9,168.99,168.98,5.9178601]
[1754502770790,145.9,168.99,168.97,5.91821033]
[1754502771100,145.9,168.99,168.97,12.8020387]
[1754502772147,152.14382837,168.98,168.92,26.71]
[1754502772310,152.14382837,168.98,168.93,12.09344004]
[1754502772629,50.19522731,168.97,168.93,12.80344004]
[1754502772807,48.71382837,168.97,168.93,12.80344004]
[1754502773913,42.54,168.97,168.93,12.80344004]
[1754502774116,42.54,168.97,168.94,6.88382837]
[1754502774322,1.48141986,168.96,168.94,6.88382837]
[1754502774526,42.54,168.97,168.94,6.88382837]
[1754502774712,1.48141924,168.96,168.94,6.88382837]
[1754502774913,42.54,168.97,168.94,6.88382837]
[1754502775208,1.48141974,168.96,168.94,6.88382837]
[1754502775521,42.54,168.97,168.94,6.88382837]
[1754502775724,1.48141974,168.96,168.95,5.91891092]
[1754502776327,1.48141936,168.96,168.95,5.91891092]
[1754502776845,1.48149342,168.96,168.94,5.91917607]
[1754502777059,1.48149342,168.95,168.94,5.91917607]
[1754502777347,145.9,168.94,168.93,5.91954592]
[1754502777524,147.38149342,168.94,168.93,5.91954592]
[1754502778653,147.38149342,168.94,168.92,5.91996211]
[1754502778826,145.9,168.94,168.92,5.91996211]
[1754502779024,152.07382837,168.94,168.91,5.9201784]
[1754502779223,145.9,168.94,168.9,5.92054011]
[1754502779548,6.17382837,168.92,168.89,5.92090477]
[1754502779736,48.71382837,168.92,168.89,5.92090477]
[1754502779941,42.54,168.92,168.89,5.92090477]
[1754502780642,42.54,168.92,168.91,5.92031259]
[1754502780820,188.44,168.93,168.91,5.92031259]
[1754502781447,194.61382837,168.93,168.89,5.92101367]
[1754502782130,194.61382837,168.93,168.89,6.63101367]
[1754502783038,6.17382837,168.92,168.89,6.63101367]
[1754502783241,6.17382837,168.91,168.88,5.92125377]
[1754502783427,6.17382837,168.9,168.87,5.98162438]
[1754502783629,42.63,168.91,168.87,0.06]
[1754502783630,6.24382837,168.89,168.87,0.06]
[1754502783937,6.17382837,168.88,168.87,0.06]
[1754502784127,21.35004394,168.88,168.87,0.06]
[1754502784335,25.60999991,168.88,168.87,0.06]
[1754502784827,3.97563283,168.88,168.87,0.06]
[1754502785054,42.54,168.88,168.87,0.06]
[1754502785255,42.54,168.89,168.87,0.77]
[1754502785474,26.0,168.91,168.87,6.94382837]
[1754502785772,42.56,168.92,168.89,6.17382837]
[1754502785974,42.56,168.92,168.9,0.71]
[1754502786329,42.56,168.92,168.91,0.71]
[1754502786528,48.73382837,168.95,168.9,0.71]
[1754502786838,48.73382837,168.95,168.9,6.88382837]
[1754502787161,6.17382837,168.94,168.91,5.92031259]
[1754502787360,42.56,168.93,168.91,6.63031259]
[1754502787746,42.56,168.93,168.91,5.92031259]
[1754502788358,4.96892734,168.99,168.92,6.88382837]
[1754502788534,0.5,169.0,168.96,6.17382837]
[1754502788741,49.23382837,169.0,168.95,6.17382837]
[1754502789043,49.23382837,169.0,168.96,5.9185606]
[1754502790342,3.97374518,168.99,168.96,5.9185606]
[1754502791679,3.97374518,168.99,168.96,12.09238897]
[1754502791879,3.97374518,168.99,168.97,0.71]
[1754502792439,3.97374518,168.99,168.98,6.88382837]
[1754502792863,43.06,169.0,168.98,6.88382837]
[1754502793177,0.5,169.0,168.99,6.62750991]
[1754502793342,0.5,169.0,168.99,12.09133828]
[1754502793540,0.5,169.0,168.99,12.80133828]
[1754502795066,0.5,169.0,168.99,6.62750991]
[1754502795439,0.5,169.0,168.99,12.80133828]
[1754502797472,0.5,169.0,168.99,6.62750991]
[1754502797648,0.5,169.0,168.99,12.80133828]
[1754502798175,0.5,169.0,168.99,12.09133828]
[1754502798339,0.53,169.0,168.99,12.09133828]
[1754502798777,0.53,169.0,168.99,12.80133828]
[1754502801742,0.53,169.0,168.99,6.62750991]
[1754502801958,0.53,169.0,168.99,12.80133828]
[1754502803460,0.53,169.0,168.99,12.09133828]
[1754502804181,0.53,169.0,168.99,12.81133828]
[1754502805669,6.70382837,169.0,168.96,5.9185606]
[1754502805850,6.70382837,169.0,168.95,5.91883013]
[1754502805851,6.17382837,168.99,168.95,5.91883013]
[1754502806255,6.17382837,168.98,168.95,5.91883013]
[1754502807087,0.07,168.99,168.95,5.91883013]
[1754502807279,6.17382837,168.98,168.95,5.91883013]
[1754502807583,6.17382837,168.99,168.95,5.91883013]
[1754502807758,6.17382837,168.99,168.95,6.63883013]
[1754502808073,4.5029057,169.0,168.95,6.63883013]
[1754502808271,6.17382837,168.99,168.95,6.63883013]
[1754502808478,6.17382837,168.99,168.95,5.91883013]
[1754502808662,6.24382837,168.99,168.95,5.91883013]
[1754502809279,6.17382837,168.99,168.95,6.63883013]
[1754502810458,0.53,169.0,168.95,6.63883013]
[1754502810658,6.17382837,168.99,168.95,6.63883013]
[1754502811052,6.17382837,168.99,168.96,0.72]
[1754502811487,6.17382837,168.99,168.96,6.63831336]
[1754502812165,145.9,168.98,168.96,6.63831336]
[1754502813583,145.9,168.98,168.97,6.89382837]
[1754502814886,145.9,168.98,168.97,12.8120387]
[1754502817116,145.9,168.98,168.97,6.63821033]
[1754502817285,145.9,168.98,168.97,12.8120387]
[1754502818585,145.9,168.98,168.97,5.91821033]
[1754502818964,145.9,168.98,168.97,6.63821033]
[1754502819783,145.9,168.98,168.95,5.91891092]
[1754502822106,145.9,168.98,168.96,0.72]
[1754502823167,145.9,168.98,168.95,5.97891092]
[1754502823674,145.9,168.98,168.95,6.69891092]
[1754502823874,145.9,168.97,168.95,6.69891092]
[1754502825483,145.9,168.96,168.95,0.06]
[1754502825889,145.9,168.96,168.95,5.97891092]
[1754502826073,145.9,168.96,168.95,6.69891092]
[1754502826271,145.9,168.96,168.95,5.97891092]
[1754502826672,145.9,168.96,168.95,6.69891092]
[1754502827394,145.9,168.96,168.95,12.87273929]
[1754502827578,0.53,169.0,168.95,27.67001659]